[Event "Queens Festival Europe 2022"]
[Site "Tornelo"]
[Date "2022.06.19"]
[Round "6.6"]
[White "Richtrova, Eliska"]
[Black "Machlik, Edit"]
[Result "1-0"]
[ECO "B10"]
[WhiteElo "2204"]
[BlackElo "2084"]
[Annotator "NA RC"]
[PlyCount "65"]
[EventDate "2022.06.19"]
[EventType "swiss"]
[EventCountry "NET"]
[SourceTitle "playchess.com"]
[Source "ChessBase"]
[SourceQuality "1"]
[TimeControl "180+2"]

1. e4 {[%emt 0:00:05]} c6 {[%emt 0:00:06]} 2. d3 {[%emt 0:00:03]} d5 {[%emt 0:00:01]} 3. Nd2 {[%emt 0:00:01]} e5 {[%emt 0:00:02]} 4. Ngf3 {[%emt 0:00:02]} Bd6 {[%emt 0:00:04]} 5. Be2 {[%emt 0:00:02]} Nf6 {[%emt 0:00:01]} 6. O-O {[%emt 0:00:01]} O-O {[%emt 0:00:02]} 7. c3 {[%emt 0:00:02]} Nbd7 {[%emt 0:00:08]} 8. Re1 {[%emt 0:00:03]} Re8 {[%emt 0:00:03]} 9. Nf1 {[%emt 0:00:01]} Nf8 {[%emt 0:00:05]} 10. Ng3 {[%emt 0:00:03]} Qc7 {[%emt 0:00:03]} 11. Bg5 {[%emt 0:00:06]} dxe4 {[%emt 0:00:31]} 12. dxe4 {[%emt 0:00:04]} N6d7 {[%emt 0:00:02]} 13. Bc4 {[%emt 0:00:15]} Nc5 {[%emt 0:00:11]} 14. Nf5 {[%emt 0:00:15]} Nxe4 {[%emt 0:01:07]} 15. Nxg7 {[%emt 0:00:17]} Kxg7 {[%emt 0:00:33]} 16. Rxe4 {[%emt 0:00:04]} Bf5 {[%emt 0:00:02]} 17. Rh4 {[%emt 0:00:19]} Ng6 {[%emt 0:00:06]} 18. Rh5 {[%emt 0:00:15]} Bg4 {[%emt 0:00:06]} 19. Bh6+ {[%emt 0:00:13]} Kg8 {[%emt 0:00:02]} 20. Rg5 {[%emt 0:00:02]} Be6 {[%emt 0:00:05]} 21. Bxe6 {[%emt 0:00:11]} Rxe6 {[%emt 0:00:02]} 22. Nd2 {[%emt 0:00:02]} Be7 {[%emt 0:00:04]} 23. Rg3 {[%emt 0:00:04]} Rd8 {[%emt 0:00:02]} 24. Qe2 {[%emt 0:00:07]} Bf6 {[%emt 0:00:02]} 25. Ne4 {[%emt 0:00:03]} Bg7 {[%emt 0:00:02]} 26. Bxg7 {[%emt 0:00:05]} Kxg7 {[%emt 0:00:02]} 27. h4 {[%emt 0:00:01]} Kh8 {[%emt 0:00:06]} 28. h5 {[%emt 0:00:07]} Ne7 {[%emt 0:00:09]} 29. Ng5 {[%emt 0:00:18]} Rf6 {[%emt 0:00:03]} 30. Qe4 {[%emt 0:00:05]} Rf5 {[%emt 0:00:05]} 31. Re1 {[%emt 0:00:09]} Qd6 {[%emt 0:00:03]} 32. Qxf5 {[%emt 0:00:06]} Nxf5 {[%emt 0:00:03]} 33. Nxf7# {[%emt 0:00:02]} 1-0

[Event "Queens Festival Europe 2022"]
[Site "Tornelo"]
[Date "2022.06.19"]
[Round "6.6"]
[White "Thornton, Filipina"]
[Black "Posadas, Rayelynn"]
[Result "0-1"]
[ECO "B43"]
[WhiteElo "1660"]
[BlackElo "1648"]
[Annotator "NA RC"]
[PlyCount "32"]
[EventDate "2022.06.19"]
[EventType "swiss"]
[EventCountry "NET"]
[SourceTitle "playchess.com"]
[Source "ChessBase"]
[SourceQuality "1"]
[TimeControl "180+2"]

1. e4 {[%emt 0:00:02]} c5 {[%emt 0:00:06]} 2. Nf3 {[%emt 0:00:02]} e6 {[%emt 0:00:02]} 3. d4 {[%emt 0:00:02]} cxd4 {[%emt 0:00:01]} 4. Nxd4 {[%emt 0:00:01]} a6 {[%emt 0:00:02]} 5. Nc3 {[%emt 0:00:01]} Qc7 {[%emt 0:00:01]} 6. Be3 {[%emt 0:00:03]} Nf6 {[%emt 0:00:02]} 7. f3 {[%emt 0:00:02]} Bc5 {[%emt 0:00:02]} 8. Qd2 {[%emt 0:00:03]} b5 {[%emt 0:00:14]} 9. g4 {[%emt 0:00:09]} Qb6 {[%emt 0:00:03]} 10. Nce2 {[%emt 0:00:02]} Bb7 {[%emt 0:00:27]} 11. e5 {[%emt 0:00:14]} Nd5 {[%emt 0:00:05]} 12. c3 {[%emt 0:00:05]} Nc6 {[%emt 0:00:07]} 13. O-O-O {[%emt 0:00:10]} Nxe5 {[%emt 0:00:05]} 14. Bg2 {[%emt 0:00:13]} Nc4 {[%emt 0:00:02]} 15. Qd3 {[%emt 0:00:08]} Ncxe3 {[%emt 0:00:03]} 16. Qxe3 {[%emt 0:00:02]} Nxe3 {[%emt 0:00:02]} 0-1

[Event "Queens Festival Europe 2022"]
[Site "Tornelo"]
[Date "2022.06.19"]
[Round "6.6"]
[White "Andries, Leia"]
[Black "Rashidova, Nargiz"]
[Result "1-0"]
[ECO "B01"]
[WhiteElo "1438"]
[BlackElo "1341"]
[Annotator "NA RC"]
[PlyCount "33"]
[EventDate "2022.06.19"]
[EventType "swiss"]
[EventCountry "NET"]
[SourceTitle "playchess.com"]
[Source "ChessBase"]
[SourceQuality "1"]
[TimeControl "180+2"]

1. e4 {[%emt 0:00:02]} d5 {[%emt 0:00:06]} 2. exd5 {[%emt 0:00:03]} Qxd5 {[%emt 0:00:02]} 3. Nc3 {[%emt 0:00:01]} Qa5 {[%emt 0:00:01]} 4. d4 {[%emt 0:00:03]} Nf6 {[%emt 0:00:03]} 5. Bd2 {[%emt 0:00:02]} c6 {[%emt 0:00:06]} 6. Nf3 {[%emt 0:00:07]} Bg4 {[%emt 0:00:02]} 7. Be2 {[%emt 0:00:04]} Nbd7 {[%emt 0:00:04]} 8. h3 {[%emt 0:00:03]} Bh5 {[%emt 0:00:03]} 9. Bc4 {[%emt 0:00:05]} e6 {[%emt 0:00:07]} 10. O-O {[%emt 0:00:09]} Qc7 {[%emt 0:00:09]} 11. Re1 {[%emt 0:00:05]} Bd6 {[%emt 0:00:14]} 12. d5 {[%emt 0:00:20]} cxd5 {[%emt 0:00:40]} 13. Bxd5 {[%emt 0:00:00]} Nxd5 {[%emt 0:00:26]} 14. Nxd5 {[%emt 0:00:00]} Qc6 {[%emt 0:00:01]} 15. Bc3 {[%emt 0:00:28]} O-O {[%emt 0:00:24]} 16. Qd4 {[%emt 0:00:30]} e5 {[%emt 0:00:34]} 17. Nxe5 {[%emt 0:00:28]} 1-0

[Event "Queens Festival Europe 2022"]
[Site "Tornelo"]
[Date "2022.06.19"]
[Round "6.7"]
[White "Ayzenberg, Alena"]
[Black "Tsakona, Maria"]
[Result "0-1"]
[ECO "E11"]
[WhiteElo "2016"]
[BlackElo "2007"]
[Annotator "NA RC"]
[PlyCount "76"]
[EventDate "2022.06.19"]
[EventType "swiss"]
[EventCountry "NET"]
[SourceTitle "playchess.com"]
[Source "ChessBase"]
[SourceQuality "1"]
[TimeControl "180+2"]

1. d4 {[%emt 0:00:02]} Nf6 {[%emt 0:00:05]} 2. c4 {[%emt 0:00:03]} e6 {[%emt 0:00:01]} 3. Nf3 {[%emt 0:00:02]} Bb4+ {[%emt 0:00:01]} 4. Bd2 {[%emt 0:00:02]} Qe7 {[%emt 0:00:01]} 5. Nc3 {[%emt 0:00:02]} Bxc3 {[%emt 0:00:07]} 6. Bxc3 {[%emt 0:00:02]} Ne4 {[%emt 0:00:01]} 7. Rc1 {[%emt 0:00:03]} O-O {[%emt 0:00:02]} 8. g3 {[%emt 0:00:03]} d6 {[%emt 0:00:02]} 9. Bg2 {[%emt 0:00:02]} Nxc3 {[%emt 0:00:02]} 10. Rxc3 {[%emt 0:00:02]} e5 {[%emt 0:00:01]} 11. d5 {[%emt 0:00:06]} a5 {[%emt 0:00:04]} 12. O-O {[%emt 0:00:13]} Na6 {[%emt 0:00:01]} 13. a3 {[%emt 0:00:07]} Bd7 {[%emt 0:00:08]} 14. Qb1 {[%emt 0:00:16]} a4 {[%emt 0:00:01]} 15. e4 {[%emt 0:00:12]} Nc5 {[%emt 0:00:03]} 16. Nd2 {[%emt 0:00:06]} b5 {[%emt 0:00:16]} 17. cxb5 {[%emt 0:00:09]} Bxb5 {[%emt 0:00:00]} 18. Rfc1 {[%emt 0:00:17]} Rfb8 {[%emt 0:00:07]} 19. Qc2 {[%emt 0:00:18]} Rb7 {[%emt 0:00:08]} 20. Bf1 {[%emt 0:00:39]} Bxf1 {[%emt 0:00:06]} 21. Kxf1 {[%emt 0:00:04]} Rab8 {[%emt 0:00:01]} 22. Nc4 {[%emt 0:00:04]} h5 {[%emt 0:00:14]} 23. h4 {[%emt 0:00:12]} Qd7 {[%emt 0:00:02]} 24. Kg2 {[%emt 0:00:05]} Nb3 {[%emt 0:00:21]} 25. Re1 {[%emt 0:00:13]} Nd4 {[%emt 0:00:02]} 26. Qd2 {[%emt 0:00:06]} Qb5 {[%emt 0:00:08]} 27. Qd1 {[%emt 0:00:04]} g6 {[%emt 0:00:07]} 28. g4 {[%emt 0:00:03]} hxg4 {[%emt 0:00:12]} 29. Qxg4 {[%emt 0:00:03]} Kg7 {[%emt 0:00:02]} 30. h5 {[%emt 0:00:03]} Rh8 {[%emt 0:00:04]} 31. hxg6 {[%emt 0:00:03]} fxg6 {[%emt 0:00:00]} 32. Rg3 {[%emt 0:00:06]} Qe8 {[%emt 0:00:03]} 33. Ree3 {[%emt 0:00:04]} Qf7 {[%emt 0:00:09]} 34. Rd3 {[%emt 0:00:04]} Rbb8 {[%emt 0:00:05]} 35. Rd2 {[%emt 0:00:02]} Rh6 {[%emt 0:00:04]} 36. Ne3 {[%emt 0:00:03]} Rbh8 {[%emt 0:00:06]} 37. Rxd4 {[%emt 0:00:03]} Rh2+ {[%emt 0:00:05]} 38. Kf1 {[%emt 0:00:02]} Qxf2# {[%emt 0:00:02]} 0-1

[Event "Queens Festival Europe 2022"]
[Site "Tornelo"]
[Date "2022.06.19"]
[Round "6.7"]
[White "Roy, Ali"]
[Black "Sava, Ana-Maria"]
[Result "1/2-1/2"]
[ECO "A07"]
[WhiteElo "1893"]
[BlackElo "1916"]
[Annotator "NA RC"]
[PlyCount "64"]
[EventDate "2022.06.19"]
[EventType "swiss"]
[EventCountry "NET"]
[SourceTitle "playchess.com"]
[Source "ChessBase"]
[SourceQuality "1"]
[TimeControl "180+2"]

1. Nf3 {[%emt 0:00:02]} g6 {[%emt 0:00:05]} 2. g3 {[%emt 0:00:02]} Bg7 {[%emt 0:00:01]} 3. Bg2 {[%emt 0:00:02]} d5 {[%emt 0:00:02]} 4. O-O {[%emt 0:00:02]} Bg4 {[%emt 0:00:02]} 5. d3 {[%emt 0:00:02]} e5 {[%emt 0:00:02]} 6. Nbd2 {[%emt 0:00:01]} Nc6 {[%emt 0:00:05]} 7. Qe1 {[%emt 0:00:04]} Nge7 {[%emt 0:00:03]} 8. a3 {[%emt 0:00:11]} O-O {[%emt 0:00:03]} 9. e4 {[%emt 0:00:02]} dxe4 {[%emt 0:00:05]} 10. dxe4 {[%emt 0:00:03]} Nd4 {[%emt 0:00:10]} 11. Nxd4 {[%emt 0:00:08]} exd4 {[%emt 0:00:11]} 12. Nf3 {[%emt 0:00:12]} c5 {[%emt 0:00:22]} 13. Bf4 {[%emt 0:00:05]} Nc6 {[%emt 0:00:05]} 14. h3 {[%emt 0:00:04]} Be6 {[%emt 0:00:04]} 15. Rd1 {[%emt 0:00:12]} Bc4 {[%emt 0:00:04]} 16. c3 {[%emt 0:00:11]} Bxf1 {[%emt 0:00:04]} 17. Bxf1 {[%emt 0:00:00]} Qb6 {[%emt 0:00:08]} 18. cxd4 {[%emt 0:00:05]} cxd4 {[%emt 0:00:02]} 19. b4 {[%emt 0:00:03]} Rad8 {[%emt 0:00:03]} 20. Bc4 {[%emt 0:00:03]} Rd7 {[%emt 0:00:17]} 21. b5 {[%emt 0:00:12]} Na5 {[%emt 0:00:06]} 22. Bd5 {[%emt 0:00:14]} Qxb5 {[%emt 0:00:10]} 23. Nxd4 {[%emt 0:00:04]} Qc5 {[%emt 0:00:08]} 24. Be3 {[%emt 0:00:13]} Qxa3 {[%emt 0:00:11]} 25. Ra1 {[%emt 0:00:02]} Qd3 {[%emt 0:00:10]} 26. Rd1 {[%emt 0:00:28]} Qa6 {[%emt 0:00:23]} 27. Ra1 {[%emt 0:00:03]} Bxd4 {[%emt 0:00:06]} 28. Bxd4 {[%emt 0:00:03]} Qd3 {[%emt 0:00:01]} 29. Rd1 {[%emt 0:00:10]} Qa3 {[%emt 0:00:05]} 30. Ra1 {[%emt 0:00:06]} Qd3 {[%emt 0:00:05]} 31. Rd1 {[%emt 0:00:03]} Qa3 {[%emt 0:00:02]} 32. Ra1 {[%emt 0:00:03]} Qd3 {[%emt 0:00:03]} 1/2-1/2

[Event "Queens Festival Europe 2022"]
[Site "Tornelo"]
[Date "2022.06.19"]
[Round "6.7"]
[White "Frundina, Yelyzaveta"]
[Black "Egger, Stefanie"]
[Result "1-0"]
[ECO "B01"]
[WhiteElo "1624"]
[BlackElo "1700"]
[Annotator "NA RC"]
[PlyCount "63"]
[EventDate "2022.06.19"]
[EventType "swiss"]
[EventCountry "NET"]
[SourceTitle "playchess.com"]
[Source "ChessBase"]
[SourceQuality "1"]
[TimeControl "180+2"]

1. Nf3 {[%emt 0:00:02]} d5 {[%emt 0:00:04]} 2. e4 {[%emt 0:00:06]} dxe4 {[%emt 0:00:10]} 3. Ng5 {[%emt 0:00:02]} Nf6 {[%emt 0:00:08]} 4. Nc3 {[%emt 0:00:06]} Bf5 {[%emt 0:00:24]} 5. d3 {[%emt 0:00:11]} exd3 {[%emt 0:00:04]} 6. Bxd3 {[%emt 0:00:09]} Bxd3 {[%emt 0:00:04]} 7. cxd3 {[%emt 0:00:15]} e6 {[%emt 0:00:06]} 8. O-O {[%emt 0:00:13]} Bd6 {[%emt 0:00:14]} 9. Nce4 {[%emt 0:00:14]} O-O {[%emt 0:00:07]} 10. Nf3 {[%emt 0:00:23]} Nc6 {[%emt 0:00:21]} 11. Bg5 {[%emt 0:00:08]} Be7 {[%emt 0:00:05]} 12. Re1 {[%emt 0:00:16]} h6 {[%emt 0:00:02]} 13. Be3 {[%emt 0:00:24]} Nd5 {[%emt 0:00:11]} 14. Bd2 {[%emt 0:00:28]} Bb4 {[%emt 0:00:08]} 15. a3 {[%emt 0:00:04]} Bxd2 {[%emt 0:00:22]} 16. Qxd2 {[%emt 0:00:04]} Qe7 {[%emt 0:00:06]} 17. Rac1 {[%emt 0:00:12]} Rad8 {[%emt 0:00:05]} 18. Nc3 {[%emt 0:00:09]} Nb6 {[%emt 0:00:04]} 19. d4 {[%emt 0:00:03]} Qd6 {[%emt 0:00:08]} 20. Red1 {[%emt 0:00:03]} a6 {[%emt 0:00:07]} 21. Ne4 {[%emt 0:00:02]} Qd5 {[%emt 0:00:05]} 22. Ng3 {[%emt 0:00:03]} e5 {[%emt 0:00:05]} 23. Rc5 {[%emt 0:00:02]} Qxc5 {[%emt 0:00:22]} 24. dxc5 {[%emt 0:00:02]} Rxd2 {[%emt 0:00:02]} 25. Rxd2 {[%emt 0:00:02]} Na4 {[%emt 0:00:03]} 26. Rd5 {[%emt 0:00:05]} f6 {[%emt 0:00:06]} 27. Rd7 {[%emt 0:00:02]} Nxc5 {[%emt 0:00:04]} 28. Rxc7 {[%emt 0:00:03]} Nd3 {[%emt 0:00:03]} 29. Nf5 {[%emt 0:00:02]} g6 {[%emt 0:00:06]} 30. Nxh6+ {[%emt 0:00:03]} Kh8 {[%emt 0:00:01]} 31. Nh4 {[%emt 0:00:03]} Nf4 {[%emt 0:00:05]} 32. g3 {[%emt 0:00:02]} 1-0

[Event "Queens Festival Europe 2022"]
[Site "Tornelo"]
[Date "2022.06.19"]
[Round "6.7"]
[White "Tani, Selina"]
[Black "Caku, Kler"]
[Result "0-1"]
[ECO "C22"]
[WhiteElo "1146"]
[BlackElo "1542"]
[Annotator "NA RC"]
[PlyCount "64"]
[EventDate "2022.06.19"]
[EventType "swiss"]
[EventCountry "NET"]
[SourceTitle "playchess.com"]
[Source "ChessBase"]
[SourceQuality "1"]
[TimeControl "180+2"]

1. e4 {[%emt 0:00:02]} e5 {[%emt 0:00:04]} 2. d4 {[%emt 0:00:02]} exd4 {[%emt 0:00:02]} 3. Qxd4 {[%emt 0:00:03]} Nc6 {[%emt 0:00:02]} 4. Qe3 {[%emt 0:00:02]} d6 {[%emt 0:00:12]} 5. Nc3 {[%emt 0:00:02]} Nf6 {[%emt 0:00:02]} 6. Bd2 {[%emt 0:00:03]} Be7 {[%emt 0:00:03]} 7. O-O-O {[%emt 0:00:01]} Ng4 {[%emt 0:00:09]} 8. Qg3 {[%emt 0:00:03]} Bh4 {[%emt 0:00:09]} 9. Qf4 {[%emt 0:00:41]} Nxf2 {[%emt 0:00:24]} 10. g3 {[%emt 0:00:10]} Nxd1 {[%emt 0:00:06]} 11. gxh4 {[%emt 0:00:05]} Nxc3 {[%emt 0:00:09]} 12. Bxc3 {[%emt 0:00:03]} f6 {[%emt 0:00:03]} 13. Qg3 {[%emt 0:00:11]} Qe7 {[%emt 0:00:06]} 14. Bd3 {[%emt 0:00:11]} Bd7 {[%emt 0:00:07]} 15. Qf2 {[%emt 0:00:05]} O-O-O {[%emt 0:00:06]} 16. h5 {[%emt 0:00:02]} h6 {[%emt 0:00:12]} 17. Nf3 {[%emt 0:00:07]} Kb8 {[%emt 0:00:02]} 18. Nd4 {[%emt 0:00:06]} Nxd4 {[%emt 0:00:07]} 19. Bxd4 {[%emt 0:00:02]} b6 {[%emt 0:00:02]} 20. Rg1 {[%emt 0:00:09]} Bc6 {[%emt 0:00:07]} 21. Qf3 {[%emt 0:00:05]} Rhe8 {[%emt 0:00:08]} 22. Re1 {[%emt 0:00:14]} d5 {[%emt 0:00:12]} 23. e5 {[%emt 0:00:10]} fxe5 {[%emt 0:00:13]} 24. Bxe5 {[%emt 0:00:02]} Qg5+ {[%emt 0:00:05]} 25. Kb1 {[%emt 0:00:18]} Rxe5 {[%emt 0:00:03]} 26. Rxe5 {[%emt 0:00:03]} Qxe5 {[%emt 0:00:05]} 27. a3 {[%emt 0:00:06]} Qf6 {[%emt 0:00:05]} 28. Qg2 {[%emt 0:00:14]} d4 {[%emt 0:00:03]} 29. Qd2 {[%emt 0:00:05]} Re8 {[%emt 0:00:05]} 30. Qb4 {[%emt 0:00:08]} Qd6 {[%emt 0:00:10]} 31. Qb3 {[%emt 0:00:10]} Bd5 {[%emt 0:00:06]} 32. Qa4 {[%emt 0:00:04]} Re1# {[%emt 0:00:03]} 0-1

[Event "Queens Festival Europe 2022"]
[Site "Tornelo"]
[Date "2022.06.19"]
[Round "6.8"]
[White "Steffensen, Elena"]
[Black "Maksimovic, Suzana"]
[Result "0-1"]
[ECO "B23"]
[WhiteElo "2044"]
[BlackElo "2145"]
[Annotator "NA RC"]
[PlyCount "96"]
[EventDate "2022.06.19"]
[EventType "swiss"]
[EventCountry "NET"]
[SourceTitle "playchess.com"]
[Source "ChessBase"]
[SourceQuality "1"]
[TimeControl "180+2"]

1. e4 {[%emt 0:00:02]} c5 {[%emt 0:00:05]} 2. Nc3 {[%emt 0:00:03]} Nc6 {[%emt 0:00:02]} 3. f4 {[%emt 0:00:02]} e6 {[%emt 0:00:02]} 4. Nf3 {[%emt 0:00:02]} a6 {[%emt 0:00:01]} 5. Be2 {[%emt 0:00:15]} d5 {[%emt 0:00:05]} 6. O-O {[%emt 0:00:06]} d4 {[%emt 0:00:09]} 7. Nb1 {[%emt 0:00:05]} Nf6 {[%emt 0:00:12]} 8. d3 {[%emt 0:00:05]} b6 {[%emt 0:00:06]} 9. Nbd2 {[%emt 0:00:05]} Bb7 {[%emt 0:00:02]} 10. e5 {[%emt 0:00:02]} Nd5 {[%emt 0:00:03]} 11. Ne4 {[%emt 0:00:02]} Be7 {[%emt 0:00:01]} 12. Qe1 {[%emt 0:00:13]} g6 {[%emt 0:00:23]} 13. c3 {[%emt 0:00:14]} h5 {[%emt 0:00:10]} 14. b4 {[%emt 0:00:20]} dxc3 {[%emt 0:00:21]} 15. bxc5 {[%emt 0:00:02]} bxc5 {[%emt 0:00:01]} 16. Nxc3 {[%emt 0:00:03]} Ncb4 {[%emt 0:00:12]} 17. Bd1 {[%emt 0:00:09]} Bc6 {[%emt 0:00:10]} 18. Nxd5 {[%emt 0:00:08]} Qxd5 {[%emt 0:00:07]} 19. Bb3 {[%emt 0:00:04]} Qxd3 {[%emt 0:00:06]} 20. Bd2 {[%emt 0:00:10]} O-O {[%emt 0:00:14]} 21. Rc1 {[%emt 0:00:07]} Bb5 {[%emt 0:00:02]} 22. a3 {[%emt 0:00:08]} Nd5 {[%emt 0:00:08]} 23. Rf2 {[%emt 0:00:10]} Rfd8 {[%emt 0:00:23]} 24. Bc2 {[%emt 0:00:03]} Qxa3 {[%emt 0:00:02]} 25. Ra1 {[%emt 0:00:07]} Qb2 {[%emt 0:00:04]} 26. Rb1 {[%emt 0:00:03]} Qxc2 {[%emt 0:00:02]} 27. Ba5 {[%emt 0:00:02]} Qa4 {[%emt 0:00:10]} 28. Bxd8 {[%emt 0:00:03]} Rxd8 {[%emt 0:00:01]} 29. Ra1 {[%emt 0:00:02]} Qxf4 {[%emt 0:00:04]} 30. g3 {[%emt 0:00:16]} Qe3 {[%emt 0:00:02]} 31. Qxe3 {[%emt 0:00:03]} Nxe3 {[%emt 0:00:02]} 32. Ne1 {[%emt 0:00:17]} c4 {[%emt 0:00:02]} 33. Rf3 {[%emt 0:00:03]} Ng4 {[%emt 0:00:03]} 34. h3 {[%emt 0:00:05]} Bc5+ {[%emt 0:00:03]} 35. Kg2 {[%emt 0:00:05]} Nxe5 {[%emt 0:00:02]} 36. Rf6 {[%emt 0:00:09]} Rd2+ {[%emt 0:00:02]} 37. Kf1 {[%emt 0:00:04]} Kg7 {[%emt 0:00:02]} 38. Nf3 {[%emt 0:00:05]} c3+ {[%emt 0:00:05]} 39. Ke1 {[%emt 0:00:03]} Kxf6 {[%emt 0:00:02]} 40. Nxd2 {[%emt 0:00:02]} cxd2+ {[%emt 0:00:02]} 41. Kxd2 {[%emt 0:00:01]} g5 {[%emt 0:00:02]} 42. g4 {[%emt 0:00:06]} hxg4 {[%emt 0:00:02]} 43. hxg4 {[%emt 0:00:02]} Nxg4 {[%emt 0:00:01]} 44. Rh1 {[%emt 0:00:01]} Kg6 {[%emt 0:00:03]} 45. Rh8 {[%emt 0:00:04]} e5 {[%emt 0:00:03]} 46. Rg8+ {[%emt 0:00:02]} Kf5 {[%emt 0:00:02]} 47. Rc8 {[%emt 0:00:05]} Bd4 {[%emt 0:00:02]} 48. Rc7 {[%emt 0:00:04]} f6 {[%emt 0:00:02]} 0-1

[Event "Queens Festival Europe 2022"]
[Site "Tornelo"]
[Date "2022.06.19"]
[Round "6.8"]
[White "Rahimli, Izzat"]
[Black "Cassi, Elisa"]
[Result "1-0"]
[ECO "D05"]
[WhiteElo "1817"]
[BlackElo "1999"]
[Annotator "NA RC"]
[PlyCount "107"]
[EventDate "2022.06.19"]
[EventType "swiss"]
[EventCountry "NET"]
[SourceTitle "playchess.com"]
[Source "ChessBase"]
[SourceQuality "1"]
[TimeControl "180+2"]

1. d4 {[%emt 0:00:02]} d5 {[%emt 0:00:06]} 2. Nf3 {[%emt 0:00:03]} Nf6 {[%emt 0:00:02]} 3. e3 {[%emt 0:00:02]} e6 {[%emt 0:00:03]} 4. Bd3 {[%emt 0:00:02]} c5 {[%emt 0:00:03]} 5. b3 {[%emt 0:00:01]} Bd6 {[%emt 0:00:05]} 6. Bb2 {[%emt 0:00:02]} O-O {[%emt 0:00:02]} 7. O-O {[%emt 0:00:14]} a6 {[%emt 0:00:02]} 8. c4 {[%emt 0:00:08]} Nc6 {[%emt 0:00:13]} 9. a3 {[%emt 0:00:04]} Qe7 {[%emt 0:00:22]} 10. Nbd2 {[%emt 0:00:05]} b6 {[%emt 0:00:03]} 11. Ne5 {[%emt 0:00:03]} Bb7 {[%emt 0:00:06]} 12. f4 {[%emt 0:00:03]} Rfd8 {[%emt 0:00:22]} 13. cxd5 {[%emt 0:00:16]} exd5 {[%emt 0:00:10]} 14. Rf3 {[%emt 0:00:04]} b5 {[%emt 0:00:24]} 15. Rh3 {[%emt 0:00:09]} c4 {[%emt 0:00:01]} 16. Bxh7+ {[%emt 0:00:21]} Nxh7 {[%emt 0:00:06]} 17. Qh5 {[%emt 0:00:05]} Qf6 {[%emt 0:00:19]} 18. Qxh7+ {[%emt 0:00:09]} Kf8 {[%emt 0:00:02]} 19. Ndf3 {[%emt 0:00:13]} Ke7 {[%emt 0:00:21]} 20. Qc2 {[%emt 0:00:06]} Na5 {[%emt 0:00:06]} 21. b4 {[%emt 0:00:10]} Nb3 {[%emt 0:00:11]} 22. Ra2 {[%emt 0:00:35]} a5 {[%emt 0:00:05]} 23. bxa5 {[%emt 0:00:10]} Rxa5 {[%emt 0:00:05]} 24. Bc3 {[%emt 0:00:02]} Rxa3 {[%emt 0:00:06]} 25. Rxa3 {[%emt 0:00:08]} Bxa3 {[%emt 0:00:01]} 26. Ng5 {[%emt 0:00:06]} Bc8 {[%emt 0:00:18]} 27. Rf3 {[%emt 0:00:06]} Bf5 {[%emt 0:00:04]} 28. Qa2 {[%emt 0:00:04]} b4 {[%emt 0:00:01]} 29. Be1 {[%emt 0:00:16]} Bg6 {[%emt 0:00:05]} 30. h4 {[%emt 0:00:05]} Nxd4 {[%emt 0:00:05]} 31. exd4 {[%emt 0:00:03]} c3 {[%emt 0:00:01]} 32. Bxc3 {[%emt 0:00:03]} bxc3 {[%emt 0:00:01]} 33. Qxa3+ {[%emt 0:00:02]} Ke8 {[%emt 0:00:01]} 34. Qa4+ {[%emt 0:00:03]} Kf8 {[%emt 0:00:02]} 35. Rxc3 {[%emt 0:00:02]} Be4 {[%emt 0:00:02]} 36. Qb4+ {[%emt 0:00:02]} Kg8 {[%emt 0:00:03]} 37. Nxe4 {[%emt 0:00:01]} dxe4 {[%emt 0:00:02]} 38. Qc5 {[%emt 0:00:02]} Qxf4 {[%emt 0:00:02]} 39. Qc7 {[%emt 0:00:02]} Rf8 {[%emt 0:00:03]} 40. Nd7 {[%emt 0:00:02]} Re8 {[%emt 0:00:02]} 41. Qxf4 {[%emt 0:00:03]} e3 {[%emt 0:00:01]} 42. Rxe3 {[%emt 0:00:03]} Rd8 {[%emt 0:00:03]} 43. Rf3 {[%emt 0:00:02]} f6 {[%emt 0:00:02]} 44. Qe4 {[%emt 0:00:03]} Kf7 {[%emt 0:00:02]} 45. d5 {[%emt 0:00:02]} Rxd7 {[%emt 0:00:01]} 46. Qe6+ {[%emt 0:00:03]} Kf8 {[%emt 0:00:01]} 47. Qxd7 {[%emt 0:00:02]} Kg8 {[%emt 0:00:02]} 48. d6 {[%emt 0:00:02]} Kh7 {[%emt 0:00:02]} 49. Qe6 {[%emt 0:00:02]} Kh6 {[%emt 0:00:02]} 50. Rg3 {[%emt 0:00:02]} Kh7 {[%emt 0:00:03]} 51. Qf7 {[%emt 0:00:01]} Kh6 {[%emt 0:00:01]} 52. Qxg7+ {[%emt 0:00:02]} Kh5 {[%emt 0:00:02]} 53. Qg6+ {[%emt 0:00:01]} Kxh4 {[%emt 0:00:00]} 54. Qg4# {[%emt 0:00:04]} 1-0

[Event "Queens Festival Europe 2022"]
[Site "Tornelo"]
[Date "2022.06.19"]
[Round "6.9"]
[White "Stewart-Bermann, Tanya"]
[Black "Arora, Tashika"]
[Result "0-1"]
[ECO "D02"]
[WhiteElo "1863"]
[BlackElo "1822"]
[Annotator "NA RC"]
[PlyCount "70"]
[EventDate "2022.06.19"]
[EventType "swiss"]
[EventCountry "NET"]
[SourceTitle "playchess.com"]
[Source "ChessBase"]
[SourceQuality "1"]
[TimeControl "180+2"]

1. d4 {[%emt 0:00:02]} Nf6 {[%emt 0:00:05]} 2. Bf4 {[%emt 0:00:03]} d5 {[%emt 0:00:01]} 3. e3 {[%emt 0:00:01]} g6 {[%emt 0:00:02]} 4. Nd2 {[%emt 0:00:02]} Bg7 {[%emt 0:00:01]} 5. Ngf3 {[%emt 0:00:01]} O-O {[%emt 0:00:02]} 6. Bd3 {[%emt 0:00:08]} c5 {[%emt 0:00:03]} 7. c3 {[%emt 0:00:05]} cxd4 {[%emt 0:00:05]} 8. exd4 {[%emt 0:00:10]} Nc6 {[%emt 0:00:01]} 9. Qc2 {[%emt 0:00:02]} Bd7 {[%emt 0:00:07]} 10. O-O-O {[%emt 0:00:02]} Rc8 {[%emt 0:00:04]} 11. Kb1 {[%emt 0:00:02]} a6 {[%emt 0:00:12]} 12. h4 {[%emt 0:00:16]} Nb4 {[%emt 0:00:04]} 13. cxb4 {[%emt 0:00:46]} Rxc2 {[%emt 0:00:03]} 14. Bxc2 {[%emt 0:00:01]} Ng4 {[%emt 0:00:05]} 15. Bg3 {[%emt 0:00:12]} h5 {[%emt 0:00:02]} 16. Ne5 {[%emt 0:00:04]} Nxe5 {[%emt 0:00:05]} 17. Bxe5 {[%emt 0:00:06]} f6 {[%emt 0:00:04]} 18. Bf4 {[%emt 0:00:07]} f5 {[%emt 0:00:07]} 19. Nf3 {[%emt 0:00:09]} Qb6 {[%emt 0:00:07]} 20. Be3 {[%emt 0:00:14]} Qxb4 {[%emt 0:00:05]} 21. Rhe1 {[%emt 0:00:05]} e6 {[%emt 0:00:04]} 22. Ng5 {[%emt 0:00:05]} Re8 {[%emt 0:00:05]} 23. f3 {[%emt 0:00:18]} a5 {[%emt 0:00:04]} 24. a3 {[%emt 0:00:09]} Qb6 {[%emt 0:00:04]} 25. g4 {[%emt 0:00:05]} e5 {[%emt 0:00:11]} 26. gxf5 {[%emt 0:00:12]} exd4 {[%emt 0:00:05]} 27. Bc1 {[%emt 0:00:13]} Rxe1 {[%emt 0:00:07]} 28. Rxe1 {[%emt 0:00:01]} gxf5 {[%emt 0:00:06]} 29. Ka2 {[%emt 0:00:12]} Qd6 {[%emt 0:00:10]} 30. Bb3 {[%emt 0:00:04]} a4 {[%emt 0:00:04]} 31. Bc2 {[%emt 0:00:01]} Bb5 {[%emt 0:00:04]} 32. f4 {[%emt 0:00:02]} Bc4+ {[%emt 0:00:03]} 33. Ka1 {[%emt 0:00:03]} d3 {[%emt 0:00:03]} 34. Bd1 {[%emt 0:00:02]} Qxa3+ {[%emt 0:00:04]} 35. Kb1 {[%emt 0:00:05]} Qa2# {[%emt 0:00:02]} 0-1